[Event "Grand Prix Romania 1st Stage 2024"]
[Site "Bucuresti"]
[Date "2024.03.23"]
[Round "1.13"]
[White "Bernadskiy, Vitaliy"]
[Black "Badica, Ariana"]
[Result "1-0"]
[ECO "B42"]
[WhiteElo "2573"]
[BlackElo "1708"]
[Annotator "RC"]
[PlyCount "41"]
[EventDate "2024.03.20"]
[EventCountry "ROU"]
[SourceTitle "playchess.com"]
[Source "ChessBase"]
[SourceQuality "1"]
[TimeControl "900+5"]

1. e4 {[%emt 0:00:02]} c5 {[%emt 0:00:02]} 2. Nf3 {[%emt 0:00:03]} d6 {[%emt 0:00:02]} 3. d4 {[%emt 0:00:01]} cxd4 {[%emt 0:00:02]} 4. Nxd4 {[%emt 0:00:03]} Nf6 {[%emt 0:00:03]} 5. Nc3 {[%emt 0:00:02]} a6 {[%emt 0:00:02]} 6. a4 {[%emt 0:00:08]} e6 {[%emt 0:00:43]} 7. Bd3 {[%emt 0:00:16]} Be7 {[%emt 0:00:09]} 8. O-O {[%emt 0:00:04]} b6 {[%emt 0:00:15]} 9. Qe2 {[%emt 0:00:12]} Bb7 {[%emt 0:00:21]} 10. f4 {[%emt 0:00:03]} O-O {[%emt 0:00:04]} 11. Kh1 {[%emt 0:00:38]} Nbd7 {[%emt 0:02:16]} 12. Nb3 {[%emt 0:00:28]} Qc7 {[%emt 0:01:38]} 13. Bd2 {[%emt 0:00:04]} Nc5 {[%emt 0:03:53]} 14. Nxc5 {[%emt 0:00:02]} dxc5 {[%emt 0:01:36]} 15. e5 {[%emt 0:00:28]} Nd5 {[%emt 0:00:09]} 16. f5 {[%emt 0:00:03]} Nxc3 {[%emt 0:00:54]} 17. Bxc3 {[%emt 0:00:03]} exf5 {[%emt 0:00:18]} 18. Rxf5 {[%emt 0:00:25]} Bc8 {[%emt 0:00:47]} 19. e6 {[%emt 0:00:34]} Bxe6 {[%emt 0:00:45]} 20. Rh5 {[%emt 0:00:02]} h6 {[%emt 0:01:31]} 21. Qe4 {[%emt 0:00:03]} 1-0

[Event "Grand Prix Romania 1st Stage 2024"]
[Site "Bucuresti"]
[Date "2024.03.23"]
[Round "1.14"]
[White "Filip, Gabriel"]
[Black "Bologan, Victor"]
[Result "0-1"]
[ECO "B22"]
[WhiteElo "1674"]
[BlackElo "2594"]
[Annotator "TA"]
[PlyCount "64"]
[EventDate "2024.03.20"]
[EventCountry "ROU"]
[SourceTitle "playchess.com"]
[Source "ChessBase"]
[SourceQuality "1"]
[TimeControl "900+5"]

{[%evp 14,64,4,11,15,-6,3,-8,-7,-15,0,-12,0,-21,-16,-32,-36,-25,-28,-142,-140,-138,-137,-216,-189,-220,-229,-218,-228,-217,-221,-224,-223,-236,-205,-268,-273,-327,-321,-474,-473,-537,-540,-510,-529,-506,-547,-534,-533,-595,-556,-921,-907]} 1. e4 {[%emt 0:00:05]} c5 {[%emt 0:00:05]} 2. c3 {[%emt 0:00:05]} Nf6 {[%emt 0:00:05]} 3. e5 {[%emt 0:00:05]} Nd5 {[%emt 0:00:05]} 4. Nf3 {[%emt 0:00:05]} g6 {[%emt 0:00:05]} 5. d4 {[%emt 0:00:05]} cxd4 {[%emt 0:00:05]} 6. cxd4 {[%emt 0:00:05]} Bg7 {[%emt 0:00:05]} 7. Bc4 {[%emt 0:00:05]} Nb6 {[%emt 0:00:05]} 8. Bb3 {[%emt 0:00:05]} d6 {[%emt 0:00:05]} 9. O-O {[%emt 0:00:05]} O-O {[%emt 0:00:05]} 10. Bf4 {[%emt 0:00:11]} Bg4 {[%emt 0:00:36] The position is equal.} 11. h3 {[%emt 0:00:21]} Bxf3 {[%emt 0:00:03]} (11... dxe5 {simplifies} 12. Bxe5 Bxe5 13. hxg4 Bg7) 12. Qxf3 {[%emt 0:00:02]} Nc6 {[%emt 0:00:03]} 13. Qe4 {[%emt 0:00:23]} dxe5 {[%emt 0:00:28]} 14. dxe5 {[%emt 0:00:07]} Qd4 {[%emt 0:00:16]} 15. Qxd4 {[%emt 0:00:21]} Nxd4 {[%emt 0:00:01]} 16. Bd1 {[%emt 0:00:29] Inhibits Ne2+. Black converts the advantage convincingly.} (16. Nc3 $11) 16... Nc4 $17 {[%emt 0:00:25][%csl LRb2,LRe5]} 17. Nc3 {[%emt 0:00:22]} Rfd8 {[%emt 0:00:40] Black has more active pieces. The white rooks are passive.} ({Don't take} 17... Nxb2 18. Bg5 $17) 18. Re1 {[%emt 0:00:30]} (18. Rb1 $17 {is a better defense.}) 18... Nxb2 $19 {[%emt 0:00:06] [#] ...Nd3 is the strong threat. A dynamic duo of knights.} 19. Rb1 {[%emt 0:00:13]} Nd3 {[%emt 0:00:05][%csl LRe1,LRf4]} 20. Re4 {[%emt 0:00:05]} Nxf4 {[%emt 0:00:25]} 21. Rxf4 {[%emt 0:00:26]} Bxe5 {[%emt 0:00:14]} 22. Re4 {[%emt 0:00:04]} Bf6 {[%emt 0:00:07]} 23. Ne2 {[%emt 0:00:36]} Nf5 {[%emt 0:00:29]} 24. Nf4 {[%emt 0:00:43]} Rd2 {[%emt 0:00:16]} 25. Bf3 {[%emt 0:00:32]} Rad8 {[%emt 0:01:28]} 26. Rxb7 {[%emt 0:00:18]} (26. a4 $142) 26... Nd6 {[%emt 0:00:07] Black is clearly winning.} ({Don't play} 26... Rxa2 27. Rb1 $19) 27. Rexe7 {[%emt 0:00:19]} Nxb7 {[%emt 0:00:10]} 28. Rxb7 {[%emt 0:00:04]} Be5 {[%emt 0:00:12]} 29. g3 {[%emt 0:00:52]} Bxf4 {[%emt 0:00:04]} 30. gxf4 {[%emt 0:00:02]} Rxa2 {[%emt 0:00:02]} 31. Rb1 {[%emt 0:00:30]} Rdd2 {[%emt 0:00:17]} 32. Rf1 {[%emt 0:00:12]} a5 {[%emt 0:00:03] Weighted Error Value: White=0.52/Black=0.04 (flawless) .  Mistake:       	White=3     	---        Inaccurate:     	White=2     	---        OK:         	White=5     	Black=18     Best:        	---       	Black=1} 0-1

[Event "Grand Prix Romania 1st Stage 2024"]
[Site "Bucuresti"]
[Date "2024.03.23"]
[Round "1.15"]
[White "Kozak, Adam"]
[Black "Sprincean, Lukas George"]
[Result "1-0"]
[ECO "A14"]
[WhiteElo "2607"]
[BlackElo "1865"]
[Annotator "TA"]
[PlyCount "57"]
[EventDate "2024.03.20"]
[EventCountry "ROU"]
[SourceTitle "playchess.com"]
[Source "ChessBase"]
[SourceQuality "1"]
[TimeControl "900+5"]

{[%evp 13,57,14,33,21,21,16,52,47,62,0,48,51,81,89,89,87,92,95,97,93,113,94,115,114,131,125,164,163,162,161,310,310,310,306,334,266,403,379,377,348,512,437,936,925,899,876]} 1. Nf3 {[%emt 0:00:03]} Nf6 {[%emt 0:00:07]} 2. g3 {[%emt 0:00:02]} d5 {[%emt 0:00:16]} 3. Bg2 {[%emt 0:00:03]} e6 {[%emt 0:01:12]} 4. O-O {[%emt 0:00:04]} Be7 {[%emt 0:00:02]} 5. c4 {[%emt 0:00:01]} O-O {[%emt 0:00:04]} 6. b3 {[%emt 0:00:02]} c6 {[%emt 0:00:59]} 7. Bb2 {[%emt 0:00:05]} a5 {[%emt 0:00:16][%cal Ba7a5,Ba5a4][%mdl 32]} 8. d4 {[%emt 0:01:15]} a4 {[%emt 0:00:52]} 9. Nbd2 {[%emt 0:00:06]} b5 {[%emt 0:00:57]} 10. c5 {[%emt 0:00:28] White is slightly better.} Qa5 {[%emt 0:00:04]} 11. Re1 {[%emt 0:01:48]} (11. a3 $14) 11... Nbd7 {[%emt 0:01:19]} (11... a3 $11 12. Bc1 Ne4) 12. Qc2 $14 {[%emt 0:01:06][%cal Ob3b4]} Ba6 {[%emt 0:02:14] [#]} 13. b4 $1 {[%emt 0:00:13]} Qc7 {[%emt 0:00:51]} (13... Qxb4 $2 14. Bc3 Bxc5 (14... Qa3 $2 15. Nb1 $18) 15. Bxb4 $18 (15. a3 Qxa3 16. Rxa3 Bxa3 $18)) (13... Qd8 14. a3) 14. a3 {[%emt 0:00:06]} Rfe8 {[%emt 0:00:34]} 15. Rad1 {[%emt 0:01:02]} Bf8 {[%emt 0:00:21]} 16. Ne5 {[%emt 0:00:58]} g6 {[%emt 0:00:59]} 17. Nd3 {[%emt 0:00:58] White has more active pieces.} Bg7 {[%emt 0:00:09]} 18. f3 {[%emt 0:00:09][%cal Bf2f3,Bf3e4,Be4d5,Bd5d6,Bd6d7][%mdl 32]} Rad8 {[%emt 0:00:46]} 19. e4 {[%emt 0:00:07]} dxe4 {[%emt 0:01:04]} 20. fxe4 {[%emt 0:00:02]} (20. Nxe4 $6 Nd5 $16) 20... e5 {[%emt 0:00:34]} 21. d5 {[%emt 0:00:05]} (21. Nxe5 $6 Nxe5 22. dxe5 Ng4 $14) (21. dxe5 Ng4 $16) 21... cxd5 {[%emt 0:00:59]} (21... Bc8 $142 22. h3 h6) 22. exd5 $18 {[%emt 0:00:03]} Rc8 {[%emt 0:01:43]} 23. Qb1 {[%emt 0:00:10]} (23. d6 $6 Qxd6 24. Ne4 (24. Nc4 Qf8 $18) 24... Qc7 $16 (24... Nxe4 $2 25. Nf2 $18)) 23... Qa7 {[%emt 0:00:17]} 24. Nf2 {[%emt 0:02:03]} ({Less strong is} 24. Bxe5 Nxe5 25. Rxe5 (25. Nxe5 Nxd5 26. Bxd5 Rxe5 $16) 25... Rxe5 26. Nxe5 Nxd5 $16) (24. Nxe5 Nxc5 25. bxc5 Qxc5+ 26. Kh1 Bb7) 24... h5 {[%emt 0:00:17]} (24... Bf8 {is a better defense.} 25. d6 (25. Nde4 Nxe4 26. Qxe4 Nxc5 $18) 25... Bb7) 25. Nde4 {[%emt 0:00:05]} Nxe4 {[%emt 0:00:04]} 26. Nxe4 {[%emt 0:00:01]} (26. Rxe4 Nxc5 27. bxc5 Qxc5 $18) 26... Nf6 {[%emt 0:00:07]} (26... Rcd8 $142 27. Qc1 Nf8) 27. d6 {[%emt 0:00:14] [#] Nxf6+ would now be deadly. White is clearly winning.} ({Not} 27. Nd6 Rxc5 28. Nxe8 Rc8+ $16) 27... Bb7 {[%emt 0:00:03]} (27... Nd7 $142 28. Qd3 Rf8) 28. Nxf6+ {[%emt 0:00:03]} Bxf6 {[%emt 0:00:01]} 29. d7 {[%emt 0:00:01] Weighted Error Value: White=0.16 (very precise) /Black=0.39.  Mistake:       	White=1     	Black=5      Inaccurate:     	---       	Black=3      OK:         	White=9     	Black=5      Best:        	---       	Black=1} 1-0

[Event "Grand Prix Romania 1st Stage 2024"]
[Site "Bucuresti"]
[Date "2024.03.23"]
[Round "1.16"]
[White "Mihalea, Stefan"]
[Black "Gavrilescu, David"]
[Result "0-1"]
[ECO "B13"]
[WhiteElo "1686"]
[BlackElo "2524"]
[Annotator "TA"]
[PlyCount "58"]
[EventDate "2024.03.20"]
[EventCountry "ROU"]
[SourceTitle "playchess.com"]
[Source "ChessBase"]
[SourceQuality "1"]
[TimeControl "900+5"]

{[%evp 9,58,0,10,10,9,4,8,-5,-9,-8,20,-39,-59,-67,-64,-55,-64,-137,-43,-98,-101,-131,-91,-141,-133,-181,-153,-192,-193,-181,-183,-290,-154,-217,-166,-354,-354,-356,-306,-335,-317,-405,-410,-412,-409,-530,-527,-512,-508,-29996,-818]} 1. d4 {[%emt 0:00:02]} d5 {[%emt 0:00:03]} 2. Bf4 {[%emt 0:00:05]} c5 {[%emt 0:00:02]} 3. e3 {[%emt 0:00:08]} cxd4 {[%emt 0:00:02]} 4. exd4 {[%emt 0:00:04]} Nc6 {[%emt 0:00:02]} 5. Nf3 {[%emt 0:00:12]} Bg4 {[%emt 0:00:04]} 6. Be2 {[%emt 0:00:26]} e6 {[%emt 0:00:02]} 7. c3 {[%emt 0:00:12]} Bd6 {[%emt 0:00:05]} 8. Bg3 {[%emt 0:00:09] Die Stellung ist ausgeglichen.} Nge7 {[%emt 0:00:03][%cal Bg8e7,Be7f5,Bf5h4][%mdl 32]} 9. Nbd2 {[%emt 0:00:17]} f6 {[%emt 0:00:06]} 10. h3 {[%emt 0:00:25]} (10. Nh4 $11 Bxe2 11. Qxe2) 10... Bxf3 $15 {[%emt 0:00:07]} 11. gxf3 {[%emt 0:00:37]} Nf5 {[%emt 0:00:18]} 12. Bxd6 {[%emt 0:00:53]} Qxd6 {[%emt 0:00:01]} 13. Rg1 {[%emt 0:00:31]} (13. h4 $15) 13... g5 {[%emt 0:00:05]} (13... Qh2 $17 14. Rf1 Nh4 (14... Qxh3 15. Bd3 $17)) 14. Nf1 {[%emt 0:00:48]} (14. Qa4 $15) 14... Nh4 {[%emt 0:00:36]} 15. Qd2 {[%emt 0:00:37]} Ne7 {[%emt 0:00:12][%cal Bc6e7,Be7g6,Bg6f4][%mdl 32]} 16. O-O-O {[%emt 0:00:13]} (16. f4 $142) 16... Neg6 $17 {[%emt 0:00:46]} 17. Re1 {[%emt 0:01:16]} (17. Kb1 $17 {ist wohl besser.}) 17... Kf7 {[%emt 0:00:03]} 18. Ne3 {[%emt 0:00:37]} Nf4 {[%emt 0:00:03]} 19. Rg3 {[%emt 0:00:36]} Rab8 {[%emt 0:00:15]} 20. Bd3 {[%emt 0:01:01] [#]} (20. Kb1 {kämpft weiter.}) 20... b5 {[%emt 0:00:04]} ({Vorzuziehen ist} 20... Nh5 $1 $19 {[%cal Rh5g3]} 21. Reg1 Nxg3 22. Rxg3 b5) 21. Reg1 {[%emt 0:00:31]} (21. Nc2 $17) 21... b4 {[%emt 0:00:05] Droht ...bxc3 und aus.} 22. Kb1 $2 {[%emt 0:00:12]} (22. c4) 22... bxc3 $19 {[%emt 0:00:04]} 23. Qxc3 {[%emt 0:00:05]} Rhc8 {[%emt 0:00:08]} 24. Qd2 {[%emt 0:00:25] [#]} Rxb2+ $3 {[%emt 0:02:07][%mdl 512]} 25. Qxb2 {[%emt 0:00:12]} (25. Kxb2 Qb6+) 25... Nxd3 {[%emt 0:00:02] Aktives Gegenspiel! Ein dynamisches Springerpaar.} 26. Qb7+ {[%emt 0:00:24]} Rc7 {[%emt 0:00:02]} 27. Qb5 {[%emt 0:00:15]} Qa3 {[%emt 0:00:02]} 28. Nc2 {[%emt 0:01:09]} Qc3 {[%emt 0:00:19]} 29. f4 {[%emt 0:00:21]} (29. Qb3 $19 Qd2 (29... Nxf2 $2 30. Qxc3 Rxc3 31. f4 $19) 30. Rh1) 29... Qxc2+ {[%emt 0:00:03] Gewichteter Fehlerwert: Weiß=0.72/Schwarz=0.18 (sehr präzise) .  Fehler:       	Weiß=9     	Schwarz=2     Ungenau:       	---       	Schwarz=2     OK:         	Weiß=4     	Schwarz=13    Bester:       	Weiß=1     	Schwarz=1} 0-1

[Event "Grand Prix Romania 1st Stage 2024"]
[Site "Bucuresti"]
[Date "2024.03.23"]
[Round "1.17"]
[White "Lupulescu, Constantin"]
[Black "Savu, Vicentiu-Dorian"]
[Result "1-0"]
[ECO "B38"]
[WhiteElo "2579"]
[BlackElo "1760"]
[Annotator "TA"]
[PlyCount "77"]
[EventDate "2024.03.20"]
[EventCountry "ROU"]
[SourceTitle "playchess.com"]
[Source "ChessBase"]
[SourceQuality "1"]
[TimeControl "900+5"]

{[%evp 19,77,63,72,60,61,60,72,47,63,43,59,54,79,65,87,97,100,74,93,97,162,152,152,101,122,91,95,99,99,90,103,75,75,75,422,377,377,408,416,414,407,408,416,337,417,416,397,308,472,487,743,767,866,853,802,795,1017,1002,2183,782]} 1. c4 {[%emt 0:00:02]} c5 {[%emt 0:00:02]} 2. Nf3 {[%emt 0:00:04]} Nc6 {[%emt 0:00:02]} 3. d4 {[%emt 0:00:03]} cxd4 {[%emt 0:00:06]} 4. Nxd4 {[%emt 0:00:01]} Nf6 {[%emt 0:00:04]} 5. Nc3 {[%emt 0:00:02]} d6 {[%emt 0:00:07]} 6. e4 {[%emt 0:00:11]} g6 {[%emt 0:00:18]} 7. Be2 {[%emt 0:00:13]} Bg7 {[%emt 0:00:04]} 8. Be3 {[%emt 0:00:16]} O-O {[%emt 0:00:08]} 9. O-O {[%emt 0:00:03]} Nxd4 {[%emt 0:00:15]} 10. Bxd4 {[%emt 0:00:03]} b6 {[%emt 0:00:03]} 11. Qc2 {[%emt 0:00:54]} Bb7 {[%emt 0:00:29]} 12. f3 {[%emt 0:01:37]} Rc8 {[%emt 0:00:40]} 13. Rfd1 {[%emt 0:00:04] Weiß steht besser.} Nd7 {[%emt 0:02:15]} 14. Be3 {[%emt 0:00:25]} Ne5 {[%emt 0:06:03]} 15. b3 {[%emt 0:00:34]} Nc6 {[%emt 0:01:04]} 16. Qd2 {[%emt 0:00:37]} f5 {[%emt 0:04:31]} 17. exf5 {[%emt 0:01:11]} gxf5 {[%emt 0:00:08][%cal Of5f4]} 18. f4 {[%emt 0:00:16]} Rf6 {[%emt 0:00:08]} 19. Bf3 {[%emt 0:00:10]} Na5 {[%emt 0:00:05]} (19... Qd7 $16) 20. Bxb7 {[%emt 0:00:14]} Nxb7 {[%emt 0:00:01]} 21. Qd5+ {[%emt 0:00:02]} (21. Bd4 $142) 21... Rf7 {[%emt 0:00:01]} 22. Qxb7 {[%emt 0:00:14][%cal Oa1c1] [#] Rac1! wäre nun fies.} Bxc3 {[%emt 0:00:04]} 23. Rac1 {[%emt 0:00:08]} Rc7 {[%emt 0:00:03]} 24. Qd5 {[%emt 0:00:19]} Bb4 {[%emt 0:00:02]} 25. Rd3 {[%emt 0:00:23] Weiß steht deutlich aktiver.} (25. Bd2 {vereinfacht} Rc5 26. Qd4 Bxd2 27. Rxd2 Qd7 28. Re1) 25... Qd7 {[%emt 0:00:19]} 26. Bd4 {[%emt 0:00:19]} (26. Bd2 {vereinfacht} e6 27. Qf3 Bxd2 28. Rxd2 Qc6 29. Qe2) 26... Rc5 $2 {[%emt 0:00:06][%mdl 8192] Danach kann Schwarz die Partie nicht mehr halten.} 27. Rg3+ {[%emt 0:00:19]} Kf8 {[%emt 0:00:05]} 28. Bxc5 {[%emt 0:00:03]} Bxc5+ {[%emt 0:00:01]} 29. Kh1 {[%emt 0:00:02]} Qc8 {[%emt 0:00:08] Wehrt Qa8 ab} 30. Rf1 {[%emt 0:00:29]} e6 {[%emt 0:00:06]} 31. Qd3 {[%emt 0:00:01] [#] Schwarz muss nun Qc3 beachten.} Ke7 {[%emt 0:00:03]} 32. Qc3 {[%emt 0:00:03]} a5 {[%emt 0:00:07]} 33. Rg7 {[%emt 0:00:23]} Bb4 {[%emt 0:00:06]} (33... Qf8 $142) 34. Qb2 {[%emt 0:00:14] Weiß steht klar auf Gewinn.} Qf8 {[%emt 0:00:01]} (34... Bc5 $142 35. Rf3 Qf8) 35. Rxf7+ $18 {[%emt 0:00:02]} Qxf7 {[%emt 0:00:02]} 36. a3 {[%emt 0:00:02][%cal Ba2a3,Ba3b4][%mdl 32]} Bc5 {[%emt 0:00:12]} 37. b4 {[%emt 0:00:01]} axb4 {[%emt 0:00:03]} 38. axb4 {[%emt 0:00:02]} Be3 {[%emt 0:00:02]} 39. Qc3 {[%emt 0:00:01] Gewichteter Fehlerwert: Weiß=0.20 (präzise) /Schwarz=0.51.  Verlustzug:     	---       	Schwarz=1     Fehler:       	Weiß=1     	Schwarz=3     OK:         	Weiß=8     	Schwarz=6     Bester:       	Weiß=1     	---} (39. Ra1 $142 e5 40. Ra7+ (40. fxe5 Qf8 $18) 40... Ke8 41. Rxf7 Kxf7 42. fxe5) 1-0

[Event "Grand Prix Romania 1st Stage 2024"]
[Site "Bucuresti"]
[Date "2024.03.23"]
[Round "1.18"]
[White "Lazarescu, Florin-Dan"]
[Black "Moroni, Luca Jr"]
[Result "0-1"]
[ECO "A41"]
[WhiteElo "1743"]
[BlackElo "2580"]
[Annotator "TA"]
[PlyCount "60"]
[EventDate "2024.03.20"]
[EventCountry "ROU"]
[SourceTitle "playchess.com"]
[Source "ChessBase"]
[SourceQuality "1"]
[TimeControl "900+5"]

{[%evp 9,60,42,50,39,66,42,46,42,39,19,33,19,25,-148,-154,-487,-352,-351,-339,-364,-276,-282,-284,-279,-275,-272,-275,-279,-285,-289,-282,-284,-292,-283,-283,-293,-301,-336,-294,-314,-300,-504,-520,-527,-549,-598,-601,-580,-567,-559,-552,-1511,-1499]} 1. d4 {[%emt 0:00:03]} g6 {[%emt 0:00:02]} 2. c4 {[%emt 0:00:03]} Bg7 {[%emt 0:00:02]} 3. Nf3 {[%emt 0:00:02]} d6 {[%emt 0:00:02]} 4. g3 {[%emt 0:00:03]} Bd7 {[%emt 0:00:02]} 5. Bg2 {[%emt 0:00:03]} Qc8 {[%emt 0:00:02]} 6. O-O {[%emt 0:00:07]} Nc6 {[%emt 0:00:04]} 7. e3 {[%emt 0:00:17]} Bh3 {[%emt 0:00:07]} 8. Nc3 {[%emt 0:00:18] White is slightly better.} h5 {[%emt 0:00:03][%cal Bh7h5,Bh5h4][%mdl 32]} 9. Ng5 {[%emt 0:01:00]} Bxg2 {[%emt 0:00:12]} 10. Kxg2 {[%emt 0:00:03]} h4 {[%emt 0:00:09]} 11. e4 $2 {[%emt 0:00:35] [#]} (11. g4 $11) 11... Bxd4 $17 {[%emt 0:00:26] Threatens to win with ...hxg3.} 12. Qf3 {[%emt 0:01:06]} (12. Nd5 $17 {is tougher.}) 12... Ne5 {[%emt 0:00:18]} 13. Qe2 {[%emt 0:00:37]} f6 {[%emt 0:00:44]} 14. Nf3 {[%emt 0:00:18]} h3+ {[%emt 0:00:29]} 15. Kg1 {[%emt 0:00:03]} Bxc3 {[%emt 0:00:04]} 16. bxc3 {[%emt 0:00:12]} Qg4 {[%emt 0:00:04]} 17. Nd4 {[%emt 0:00:42]} Qxe2 {[%emt 0:00:04]} 18. Nxe2 {[%emt 0:00:02]} Nxc4 {[%emt 0:00:06]} 19. Nd4 {[%emt 0:00:18]} Kd7 {[%emt 0:00:06]} 20. Rb1 {[%emt 0:00:22]} b6 {[%emt 0:00:05]} 21. Rb4 {[%emt 0:00:22]} Ne5 {[%emt 0:00:18][%cal Bc4e5,Be5f3,Bf3h2,Bh2g4,Bg4f2][%mdl 32] [#] ...c5 is the strong threat.} 22. Rb1 {[%emt 0:00:49]} c5 {[%emt 0:00:04]} 23. Ne2 {[%emt 0:00:24]} Nf3+ {[%emt 0:00:10]} 24. Kh1 {[%emt 0:00:03]} Nh6 {[%emt 0:00:05] aiming for ...Ng4.} 25. Nf4 $2 {[%emt 0:00:14]} (25. Ng1 Ne5 26. Bf4) 25... g5 $19 {[%emt 0:00:26] Black is clearly winning.} 26. Nd5 {[%emt 0:00:52]} Ng4 {[%emt 0:00:05]} 27. Ne3 {[%emt 0:00:48]} Nfxh2 {[%emt 0:00:07]} 28. Rd1 {[%emt 0:00:48]} Nxe3 {[%emt 0:00:07]} (28... Nxf2+ 29. Kxh2 Nxd1 (29... Nxe4 $2 30. Rb3 $19) 30. Nxd1 $19) 29. Bxe3 {[%emt 0:00:08]} Ng4 {[%emt 0:00:05]} 30. Bc1 {[%emt 0:00:23]} Nxf2+ {[%emt 0:00:04] Black took control after the opening.   Weighted Error Value: White=0.70/Black=0.18 (very precise) .  Loses game:     	White=1     	---        Mistake:       	White=2     	---        Inaccurate:     	White=1     	Black=1      OK:         	White=5     	Black=16     Best:        	---       	Black=2} 0-1